[Event "1000GM NY Winter GM-B 2024"]
[Site "New York"]
[Date "2024.01.13"]
[Round "4.2"]
[White "Graif, William"]
[Black "Luo, Terry"]
[Result "0-1"]
[ECO "C45"]
[WhiteElo "2302"]
[BlackElo "2342"]
[Annotator "RC"]
[PlyCount "88"]
[EventDate "2024.01.10"]
[EventType "tourn"]
[EventCountry "USA"]
[SourceTitle "playchess.com"]
[Source "ChessBase"]
[SourceQuality "1"]
[TimeControl "5400+30"]

1. e4 {[%emt 0:00:06]} e5 {[%emt 0:00:02]} 2. Nf3 {[%emt 0:00:07]} Nc6 {[%emt 0:00:02]} 3. d4 {[%emt 0:00:24]} exd4 {[%emt 0:00:05]} 4. Nxd4 {[%emt 0:00:05]} Nf6 {[%emt 0:00:03]} 5. Nxc6 {[%emt 0:00:28]} bxc6 {[%emt 0:00:04]} 6. e5 {[%emt 0:00:05]} Qe7 {[%emt 0:00:02]} 7. Qe2 {[%emt 0:00:07]} Nd5 {[%emt 0:00:02]} 8. h4 {[%emt 0:00:37]} f6 {[%emt 0:09:14]} 9. c4 {[%emt 0:00:19]} Ba6 {[%emt 0:00:43]} 10. Rh3 {[%emt 0:00:11]} O-O-O {[%emt 0:09:07]} 11. Qe4 {[%emt 0:00:16]} Nb6 {[%emt 0:03:08]} 12. c5 {[%emt 0:00:14]} Bxf1 {[%emt 0:03:22]} 13. cxb6 {[%emt 0:00:07]} Ba6 {[%emt 0:05:20]} 14. bxa7 {[%emt 0:00:13]} Kb7 {[%emt 0:04:13]} 15. Rb3+ {[%emt 0:00:14]} Ka8 {[%emt 0:02:50]} 16. Bf4 {[%emt 0:00:17]} g5 {[%emt 1:00:13]} 17. hxg5 {[%emt 0:15:09]} fxg5 {[%emt 0:00:00]} 18. Bg3 {[%emt 0:02:56]} d5 {[%emt 0:01:00]} 19. Qa4 {[%emt 0:17:11]} Bb5 {[%emt 0:00:00]} 20. Qa5 {[%emt 0:02:48]} Bc4 {[%emt 0:00:00]} 21. Rb8+ {[%emt 0:20:32]} Rxb8 {[%emt 0:00:00]} 22. axb8=Q+ {[%emt 0:39:04]} Kxb8 {[%emt 0:00:00]} 23. Nd2 {[%emt 0:00:00]} Qb4 {[%emt 0:00:00]} 24. Qxb4+ {[%emt 0:00:00]} Bxb4 {[%emt 0:00:00]} 25. a3 {[%emt 0:00:00]} Bxd2+ {[%emt 0:00:00]} 26. Kxd2 {[%emt 0:00:00]} h5 {[%emt 0:00:00]} 27. b3 {[%emt 0:00:00]} Ba6 {[%emt 0:04:30]} 28. Rc1 {[%emt 0:00:00]} h4 {[%emt 0:00:00]} 29. Bh2 {[%emt 0:00:00]} Rf8 {[%emt 0:00:00]} 30. Ke3 {[%emt 0:00:00]} d4+ {[%emt 0:00:00]} 31. Kxd4 {[%emt 0:00:00]} Rxf2 {[%emt 0:00:00]} 32. e6 {[%emt 0:00:00]} Rd2+ {[%emt 0:00:00]} 33. Ke5 {[%emt 0:00:00]} Bc8 {[%emt 0:00:00]} 34. e7 {[%emt 0:00:00]} Bd7 {[%emt 0:00:00]} 35. Bg1 {[%emt 0:01:10]} Rxg2 {[%emt 0:00:00]} 36. Kf6 {[%emt 0:00:53]} h3 {[%emt 0:00:00]} 37. Kf7 {[%emt 0:03:55]} h2 {[%emt 0:00:00]} 38. Be3 {[%emt 0:01:27]} g4 {[%emt 0:00:00]} 39. Rd1 {[%emt 0:00:16]} Re2 {[%emt 0:00:00]} 40. Bf4 {[%emt 0:00:46]} Rf2 {[%emt 0:00:00]} 41. Rxd7 {[%emt 0:00:30]} Rxf4+ {[%emt 0:00:00]} 42. Kg6 {[%emt 0:00:16]} Re4 {[%emt 0:00:00]} 43. Rd8+ {[%emt 0:00:21]} Kb7 {[%emt 0:00:00]} 44. Rh8 {[%emt 0:00:07]} g3 {[%emt 0:00:00]} 0-1

[Event "1000GM NY Winter GM-B 2024"]
[Site "New York"]
[Date "2024.01.13"]
[Round "4.3"]
[White "Nagy, Gabor"]
[Black "Griffith, Kyron"]
[Result "1-0"]
[ECO "B43"]
[WhiteElo "2450"]
[BlackElo "2367"]
[Annotator "RC"]
[PlyCount "77"]
[EventDate "2024.01.10"]
[EventType "tourn"]
[EventCountry "USA"]
[SourceTitle "playchess.com"]
[Source "ChessBase"]
[SourceQuality "1"]
[TimeControl "5400+30"]

1. e4 {[%emt 0:01:33]} c5 {[%emt 0:00:04]} 2. Nf3 {[%emt 0:00:18]} e6 {[%emt 0:00:04]} 3. Nc3 {[%emt 0:00:45]} a6 {[%emt 0:00:09]} 4. d4 {[%emt 0:00:57]} cxd4 {[%emt 0:00:06]} 5. Nxd4 {[%emt 0:00:07]} b5 {[%emt 0:00:22]} 6. g3 {[%emt 0:02:19]} Bb7 {[%emt 0:02:07]} 7. Bg2 {[%emt 0:01:52]} Qc7 {[%emt 0:01:46]} 8. O-O {[%emt 0:00:53]} Nf6 {[%emt 0:02:49]} 9. Re1 {[%emt 0:04:28]} d6 {[%emt 0:01:54]} 10. a4 {[%emt 0:00:32]} b4 {[%emt 0:02:05]} 11. Na2 {[%emt 0:01:04]} Be7 {[%emt 0:00:32]} 12. Nxb4 {[%emt 0:07:05]} d5 {[%emt 0:05:08]} 13. Bf4 {[%emt 0:01:41]} Qd7 {[%emt 0:22:47]} 14. exd5 {[%emt 0:08:58]} Bxb4 {[%emt 0:02:40]} 15. dxe6 {[%emt 0:01:00]} Qc8 {[%emt 0:11:43]} 16. Bh3 {[%emt 0:05:35]} Qc4 {[%emt 0:10:24]} 17. exf7+ {[%emt 0:01:57]} Kf8 {[%emt 0:00:24]} 18. c3 {[%emt 0:02:51]} Qd5 {[%emt 0:13:14]} 19. Ne6+ {[%emt 0:00:28]} Kxf7 {[%emt 0:00:04]} 20. Qxd5 {[%emt 0:00:34]} Nxd5 {[%emt 0:00:24]} 21. cxb4 {[%emt 0:00:19]} Nxf4 {[%emt 0:01:46]} 22. Nxf4 {[%emt 0:00:24]} Nc6 {[%emt 0:02:17]} 23. Be6+ {[%emt 0:00:31]} Kf6 {[%emt 0:01:20]} 24. Bd5 {[%emt 0:00:08]} Rhe8 {[%emt 0:02:28]} 25. Rxe8 {[%emt 0:01:16]} Rxe8 {[%emt 0:00:02]} 26. Rc1 {[%emt 0:00:32]} Rc8 {[%emt 0:00:41]} 27. Re1 {[%emt 0:00:06]} g5 {[%emt 0:01:46]} 28. Nh5+ {[%emt 0:01:37]} Kg6 {[%emt 0:00:19]} 29. g4 {[%emt 0:00:08]} Nd8 {[%emt 0:01:42]} 30. Bxb7 {[%emt 0:00:19]} Nxb7 {[%emt 0:00:02]} 31. Re6+ {[%emt 0:00:12]} Kf7 {[%emt 0:00:02]} 32. Rxa6 {[%emt 0:00:30]} Rc4 {[%emt 0:00:12]} 33. Rb6 {[%emt 0:02:06]} Rxg4+ {[%emt 0:00:05]} 34. Ng3 {[%emt 0:00:19]} Nd8 {[%emt 0:00:02]} 35. a5 {[%emt 0:00:10]} Ne6 {[%emt 0:00:22]} 36. a6 {[%emt 0:01:33]} Rc4 {[%emt 0:00:06]} 37. Ne2 {[%emt 0:00:30]} Rc8 {[%emt 0:02:57]} 38. b5 {[%emt 0:00:22]} Ra8 {[%emt 0:14:35]} 39. b4 {[%emt 0:01:02]} 1-0

[Event "1000GM NY Winter GM-B 2024"]
[Site "New York"]
[Date "2024.01.13"]
[Round "4.5"]
[White "Lee, Alice"]
[Black "Koustav Chatterjee"]
[Result "0-1"]
[ECO "E97"]
[WhiteElo "2379"]
[BlackElo "2546"]
[Annotator "RC"]
[PlyCount "72"]
[EventDate "2024.01.10"]
[EventType "tourn"]
[EventCountry "USA"]
[SourceTitle "playchess.com"]
[Source "ChessBase"]
[SourceQuality "1"]
[TimeControl "5400+30"]

1. Nf3 {[%emt 0:00:06]} Nf6 {[%emt 0:00:18]} 2. c4 {[%emt 0:00:11]} g6 {[%emt 0:00:16]} 3. Nc3 {[%emt 0:00:26]} Bg7 {[%emt 0:00:06]} 4. e4 {[%emt 0:01:02]} d6 {[%emt 0:00:06]} 5. d4 {[%emt 0:00:19]} O-O {[%emt 0:00:07]} 6. Be2 {[%emt 0:00:56]} e5 {[%emt 0:00:21]} 7. O-O {[%emt 0:00:18]} Nc6 {[%emt 0:00:05]} 8. Be3 {[%emt 0:00:08]} Ng4 {[%emt 0:00:14]} 9. Bg5 {[%emt 0:00:08]} f6 {[%emt 0:00:05]} 10. Bc1 {[%emt 0:00:08]} f5 {[%emt 0:00:07]} 11. exf5 {[%emt 0:03:32]} gxf5 {[%emt 0:10:23]} 12. dxe5 {[%emt 0:00:12]} dxe5 {[%emt 0:00:06]} 13. Qd5+ {[%emt 0:00:19]} Kh8 {[%emt 0:04:47]} 14. Qxd8 {[%emt 0:00:13]} Nxd8 {[%emt 0:15:36]} 15. Nb5 {[%emt 0:11:19]} c6 {[%emt 0:19:44]} 16. Nd6 {[%emt 0:00:48]} e4 {[%emt 0:00:20]} 17. Ng5 {[%emt 0:06:01]} Ne5 {[%emt 0:00:38]} 18. Be3 {[%emt 0:09:31]} h6 {[%emt 0:08:01]} 19. Nh3 {[%emt 0:01:34]} Ne6 {[%emt 0:00:05]} 20. Nf4 {[%emt 0:06:29]} Nxf4 {[%emt 0:09:28]} 21. Bxf4 {[%emt 0:00:07]} Ng6 {[%emt 0:00:11]} 22. Bd2 {[%emt 0:02:53]} Be6 {[%emt 0:00:05]} 23. Rad1 {[%emt 0:11:06]} b6 {[%emt 0:01:50]} 24. Bc1 {[%emt 0:06:47]} Rad8 {[%emt 0:06:20]} 25. Nb7 {[%emt 0:01:39]} Rb8 {[%emt 0:00:39]} 26. Nd6 {[%emt 0:00:05]} Rfd8 {[%emt 0:06:14]} 27. g4 {[%emt 0:01:16]} Nh4 {[%emt 0:07:53]} 28. Bf4 {[%emt 0:05:23]} fxg4 {[%emt 0:03:01]} 29. Bxg4 {[%emt 0:02:02]} Rf8 {[%emt 0:00:27]} 30. Bxe6 {[%emt 0:02:29]} Rxf4 {[%emt 0:00:44]} 31. Nf7+ {[%emt 0:12:03]} Kh7 {[%emt 0:00:06]} 32. Nd8 {[%emt 0:00:24]} Nf3+ {[%emt 0:05:14]} 33. Kg2 {[%emt 0:00:13]} Ne5 {[%emt 0:00:14]} 34. Bh3 {[%emt 0:02:51]} Bf6 {[%emt 0:00:23]} 35. Ne6 {[%emt 0:00:22]} Rf3 {[%emt 0:00:27]} 36. Rd6 {[%emt 0:06:57]} Be7 {[%emt 0:00:06]} 0-1

[Event "1000GM NY Winter GM-B 2024"]
[Site "New York"]
[Date "2024.01.14"]
[Round "5.1"]
[White "Koustav Chatterjee"]
[Black "Adewumi, Tanitoluwa"]
[Result "1/2-1/2"]
[ECO "B40"]
[WhiteElo "2546"]
[BlackElo "2280"]
[Annotator "RC"]
[PlyCount "85"]
[EventDate "2024.01.10"]
[EventType "tourn"]
[EventCountry "USA"]
[SourceTitle "playchess.com"]
[Source "ChessBase"]
[SourceQuality "1"]
[TimeControl "5400+30"]

1. e4 {[%emt 0:01:09]} c5 {[%emt 0:00:05]} 2. Nf3 {[%emt 0:00:30]} e6 {[%emt 0:02:13]} 3. b3 {[%emt 0:00:31]} Nc6 {[%emt 0:00:51]} 4. Bb2 {[%emt 0:00:07]} d5 {[%emt 0:02:57]} 5. Bb5 {[%emt 0:00:30]} Nf6 {[%emt 0:00:39]} 6. exd5 {[%emt 0:16:00]} exd5 {[%emt 0:01:02]} 7. Qe2+ {[%emt 0:01:05]} Be7 {[%emt 0:08:17]} 8. O-O {[%emt 0:12:19]} O-O {[%emt 0:00:26]} 9. Re1 {[%emt 0:00:14]} Bd6 {[%emt 0:02:33]} 10. Bxc6 {[%emt 0:00:16]} bxc6 {[%emt 0:00:06]} 11. d3 {[%emt 0:00:13]} Bg4 {[%emt 0:00:42]} 12. Nbd2 {[%emt 0:00:07]} Bf4 {[%emt 0:01:13]} 13. Qf1 {[%emt 0:00:14]} Qa5 {[%emt 0:05:43]} 14. c3 {[%emt 0:08:47]} Rfe8 {[%emt 0:04:12]} 15. h3 {[%emt 0:00:08]} Rxe1 {[%emt 0:02:20]} 16. Qxe1 {[%emt 0:00:42]} Re8 {[%emt 0:03:04]} 17. Qf1 {[%emt 0:02:14]} Bxd2 {[%emt 0:03:27]} 18. Nxd2 {[%emt 0:00:11]} Be2 {[%emt 0:00:13]} 19. Qb1 {[%emt 0:01:47]} Nh5 {[%emt 0:02:24]} 20. Nf1 {[%emt 0:18:00]} Nf4 {[%emt 0:01:10]} 21. Ng3 {[%emt 0:00:05]} Bxd3 {[%emt 0:01:05]} 22. Qd1 {[%emt 0:00:05]} c4 {[%emt 0:00:59]} 23. Qg4 {[%emt 0:02:47]} Qc7 {[%emt 0:02:52]} 24. Ba3 {[%emt 0:06:49]} Qe5 {[%emt 0:01:47]} 25. Qd7 {[%emt 0:00:53]} h6 {[%emt 0:16:01]} 26. Bc5 {[%emt 0:10:09]} a6 {[%emt 0:04:58]} 27. Bd4 {[%emt 0:01:01]} Qe6 {[%emt 0:00:56]} 28. Qc7 {[%emt 0:00:06]} g5 {[%emt 0:02:36]} 29. b4 {[%emt 0:02:53]} Bg6 {[%emt 0:13:43]} 30. Be3 {[%emt 0:01:26]} Qf6 {[%emt 0:02:27]} 31. Bd4 {[%emt 0:00:18]} Qe6 {[%emt 0:00:43]} 32. Be3 {[%emt 0:00:04]} d4 {[%emt 0:06:25]} 33. Bxd4 {[%emt 0:07:35]} Qd5 {[%emt 0:00:14]} 34. f3 {[%emt 0:00:21]} h5 {[%emt 0:00:28]} 35. Kh2 {[%emt 0:02:27]} h4 {[%emt 0:01:04]} 36. Nf1 {[%emt 0:00:17]} Ne6 {[%emt 0:04:22]} 37. Qe5 {[%emt 0:00:05]} Qxe5+ {[%emt 0:00:56]} 38. Bxe5 {[%emt 0:00:03]} Nf4 {[%emt 0:00:39]} 39. Bxf4 {[%emt 0:01:50]} gxf4 {[%emt 0:00:01]} 40. Nd2 {[%emt 0:00:00]} Bd3 {[%emt 0:00:20]} 41. Ne4 {[%emt 0:00:05]} Bxe4 {[%emt 0:00:14]} 42. fxe4 {[%emt 0:00:02]} Rxe4 {[%emt 0:00:06]} 43. Rd1 {[%emt 0:00:03]} 1/2-1/2

[Event "1000GM NY Winter GM-B 2024"]
[Site "New York"]
[Date "2024.01.14"]
[Round "5.2"]
[White "Nakada, Akira"]
[Black "Lee, Alice"]
[Result "1-0"]
[ECO "A13"]
[WhiteElo "2374"]
[BlackElo "2379"]
[Annotator "RC"]
[PlyCount "65"]
[EventDate "2024.01.10"]
[EventType "tourn"]
[EventCountry "USA"]
[SourceTitle "playchess.com"]
[Source "ChessBase"]
[SourceQuality "1"]
[TimeControl "5400+30"]

1. c4 {[%emt 0:06:57]} e6 {[%emt 0:00:09]} 2. g3 {[%emt 0:00:09]} d5 {[%emt 0:00:09]} 3. Bg2 {[%emt 0:00:08]} dxc4 {[%emt 0:00:34]} 4. Qa4+ {[%emt 0:01:05]} Nd7 {[%emt 0:00:09]} 5. Qxc4 {[%emt 0:00:39]} a6 {[%emt 0:00:38]} 6. Qc2 {[%emt 0:00:06]} Ngf6 {[%emt 0:01:35]} 7. Nf3 {[%emt 0:01:21]} Rb8 {[%emt 0:02:31]} 8. O-O {[%emt 0:02:43]} Bd6 {[%emt 0:01:06]} 9. d4 {[%emt 0:00:30]} O-O {[%emt 0:02:38]} 10. Rd1 {[%emt 0:04:31]} b5 {[%emt 0:05:29]} 11. Ne5 {[%emt 0:11:55]} Bb7 {[%emt 0:04:23]} 12. Nc6 {[%emt 0:03:25]} Bxc6 {[%emt 0:00:03]} 13. Qxc6 {[%emt 0:00:10]} Nd5 {[%emt 0:04:11]} 14. e4 {[%emt 0:03:50]} N5b6 {[%emt 0:04:47]} 15. Nd2 {[%emt 0:05:17]} e5 {[%emt 0:01:36]} 16. Nf3 {[%emt 0:06:36]} Qe8 {[%emt 0:07:09]} 17. b3 {[%emt 0:09:44]} exd4 {[%emt 0:18:50]} 18. Nxd4 {[%emt 0:00:09]} Nc5 {[%emt 0:01:17]} 19. Bb2 {[%emt 0:04:20]} Ne6 {[%emt 0:10:40]} 20. Rac1 {[%emt 0:03:00]} Nxd4 {[%emt 0:03:57]} 21. Bxd4 {[%emt 0:00:43]} Qe7 {[%emt 0:01:36]} 22. e5 {[%emt 0:06:11]} Ba3 {[%emt 0:03:45]} 23. Qxc7 {[%emt 0:01:44]} Qxc7 {[%emt 0:06:43]} 24. Rxc7 {[%emt 0:00:05]} Rfd8 {[%emt 0:00:05]} 25. Bf3 {[%emt 0:05:48]} Nd5 {[%emt 0:00:06]} 26. Ra7 {[%emt 0:00:07]} Nb4 {[%emt 0:00:18]} 27. e6 {[%emt 0:04:09]} fxe6 {[%emt 0:04:16]} 28. Rxg7+ {[%emt 0:00:04]} Kf8 {[%emt 0:00:04]} 29. Rxh7 {[%emt 0:00:14]} Nxa2 {[%emt 0:02:15]} 30. Bf6 {[%emt 0:06:07]} Rxd1+ {[%emt 0:01:00]} 31. Bxd1 {[%emt 0:00:02]} Kg8 {[%emt 0:00:09]} 32. Rg7+ {[%emt 0:00:12]} Kf8 {[%emt 0:14:22]} 33. Bh5 {[%emt 0:00:22]} 1-0

[Event "1000GM NY Winter GM-B 2024"]
[Site "New York"]
[Date "2024.01.14"]
[Round "5.3"]
[White "Griffith, Kyron"]
[Black "Paragua, Mark"]
[Result "1/2-1/2"]
[ECO "B90"]
[WhiteElo "2367"]
[BlackElo "2448"]
[Annotator "RC"]
[PlyCount "69"]
[EventDate "2024.01.10"]
[EventType "tourn"]
[EventCountry "USA"]
[SourceTitle "playchess.com"]
[Source "ChessBase"]
[SourceQuality "1"]
[TimeControl "5400+30"]

1. e4 {[%emt 0:00:04]} c5 {[%emt 0:00:09]} 2. Nf3 {[%emt 0:00:09]} d6 {[%emt 0:00:08]} 3. d4 {[%emt 0:00:18]} cxd4 {[%emt 0:00:08]} 4. Nxd4 {[%emt 0:00:03]} Nf6 {[%emt 0:00:13]} 5. Nc3 {[%emt 0:00:04]} a6 {[%emt 0:00:05]} 6. Rg1 {[%emt 0:00:18]} e5 {[%emt 0:00:17]} 7. Nb3 {[%emt 0:00:05]} Be6 {[%emt 0:00:30]} 8. g4 {[%emt 0:00:13]} d5 {[%emt 0:00:18]} 9. exd5 {[%emt 0:00:06]} Nxd5 {[%emt 0:00:23]} 10. Nxd5 {[%emt 0:00:06]} Qxd5 {[%emt 0:01:01]} 11. Qxd5 {[%emt 0:00:07]} Bxd5 {[%emt 0:00:05]} 12. Be3 {[%emt 0:01:20]} Nc6 {[%emt 0:04:30]} 13. O-O-O {[%emt 0:00:09]} O-O-O {[%emt 0:03:07]} 14. Bb6 {[%emt 0:00:22]} Rd7 {[%emt 0:00:15]} 15. g5 {[%emt 0:00:15]} Be6 {[%emt 0:03:58]} 16. Rxd7 {[%emt 0:00:14]} Kxd7 {[%emt 0:00:34]} 17. Nc5+ {[%emt 0:05:17]} Bxc5 {[%emt 0:00:20]} 18. Bxc5 {[%emt 0:00:04]} Kc7 {[%emt 0:01:06]} 19. Rg3 {[%emt 0:10:23]} h6 {[%emt 0:26:11]} 20. gxh6 {[%emt 0:20:07]} Rxh6 {[%emt 0:00:25]} 21. Rxg7 {[%emt 0:05:33]} Rxh2 {[%emt 0:00:08]} 22. Kd2 {[%emt 0:01:29]} Nd4 {[%emt 0:03:48]} 23. Bxd4 {[%emt 0:02:25]} exd4 {[%emt 0:00:12]} 24. Rg2 {[%emt 0:05:14]} Rh4 {[%emt 0:07:52]} 25. a4 {[%emt 0:05:11]} Kd6 {[%emt 0:02:48]} 26. b3 {[%emt 0:02:15]} Ke5 {[%emt 0:00:37]} 27. Rg8 {[%emt 0:08:44]} Rh2 {[%emt 0:01:54]} 28. Rg2 {[%emt 0:02:04]} Rh1 {[%emt 0:02:20]} 29. Be2 {[%emt 0:01:04]} Bf5 {[%emt 0:05:54]} 30. Bd3 {[%emt 0:03:44]} Bxd3 {[%emt 0:02:00]} 31. Kxd3 {[%emt 0:00:08]} Rh3+ {[%emt 0:01:56]} 32. Ke2 {[%emt 0:00:13]} Rc3 {[%emt 0:02:26]} 33. Kd2 {[%emt 0:00:05]} Rf3 {[%emt 0:00:24]} 34. Ke2 {[%emt 0:00:10]} Rc3 {[%emt 0:00:09]} 35. Kd2 {[%emt 0:00:06]} 1/2-1/2

[Event "1000GM NY Winter GM-B 2024"]
[Site "New York"]
[Date "2024.01.14"]
[Round "5.5"]
[White "Levine, Joseph"]
[Black "Graif, William"]
[Result "0-1"]
[ECO "B45"]
[WhiteElo "2376"]
[BlackElo "2302"]
[Annotator "RC"]
[PlyCount "100"]
[EventDate "2024.01.10"]
[EventType "tourn"]
[EventCountry "USA"]
[SourceTitle "playchess.com"]
[Source "ChessBase"]
[SourceQuality "1"]
[TimeControl "5400+30"]

1. e4 {[%emt 0:00:43]} c5 {[%emt 0:00:36]} 2. Nf3 {[%emt 0:00:06]} Nc6 {[%emt 0:00:06]} 3. Nc3 {[%emt 0:00:04]} e6 {[%emt 0:00:54]} 4. d4 {[%emt 0:00:15]} cxd4 {[%emt 0:00:06]} 5. Nxd4 {[%emt 0:00:04]} Nf6 {[%emt 0:00:37]} 6. Nxc6 {[%emt 0:00:43]} bxc6 {[%emt 0:01:29]} 7. e5 {[%emt 0:00:02]} Nd5 {[%emt 0:00:08]} 8. Ne4 {[%emt 0:00:04]} Qc7 {[%emt 0:00:13]} 9. f4 {[%emt 0:00:07]} Qb6 {[%emt 0:00:39]} 10. c4 {[%emt 0:00:20]} Ne3 {[%emt 0:00:24]} 11. Qd3 {[%emt 0:01:35]} Bb4+ {[%emt 0:00:21]} 12. Bd2 {[%emt 0:04:23]} Ba6 {[%emt 0:00:14]} 13. Bxb4 {[%emt 0:08:22]} Qxb4+ {[%emt 0:00:09]} 14. Kf2 {[%emt 0:00:27]} Qxb2+ {[%emt 0:01:47]} 15. Be2 {[%emt 0:01:31]} Nxc4 {[%emt 0:00:31]} 16. Rhb1 {[%emt 0:00:43]} Nxe5 {[%emt 0:00:17]} 17. Qxa6 {[%emt 0:19:34]} Qd4+ {[%emt 0:04:55]} 18. Kf1 {[%emt 0:01:15]} Qxe4 {[%emt 0:00:58]} 19. fxe5 {[%emt 0:00:04]} Qxe5 {[%emt 0:00:55]} 20. Qb7 {[%emt 0:04:44]} Ke7 {[%emt 0:29:52]} 21. Rd1 {[%emt 0:00:46]} Rhd8 {[%emt 0:00:25]} 22. Bf3 {[%emt 0:02:03]} Ke8 {[%emt 0:28:14]} 23. h3 {[%emt 0:05:04]} a5 {[%emt 0:02:08]} 24. Rab1 {[%emt 0:07:29]} Rab8 {[%emt 0:00:39]} 25. Qa7 {[%emt 0:02:03]} Rb4 {[%emt 0:03:50]} 26. Rbc1 {[%emt 0:16:21]} Qb5+ {[%emt 0:04:00]} 27. Kg1 {[%emt 0:02:05]} Qb6+ {[%emt 0:01:35]} 28. Qxb6 {[%emt 0:00:01]} Rxb6 {[%emt 0:00:01]} 29. Rc5 {[%emt 0:01:38]} Ra8 {[%emt 0:04:02]} 30. Rd3 {[%emt 0:00:58]} Ra7 {[%emt 0:01:55]} 31. Rdc3 {[%emt 0:04:01]} Kd8 {[%emt 0:00:58]} 32. Kh2 {[%emt 0:02:22]} Kc7 {[%emt 0:01:16]} 33. Kg3 {[%emt 0:00:12]} a4 {[%emt 0:02:09]} 34. R5c4 {[%emt 0:02:26]} a3 {[%emt 0:01:28]} 35. Bd1 {[%emt 0:00:51]} d5 {[%emt 0:01:19]} 36. Rg4 {[%emt 0:01:25]} g6 {[%emt 0:00:43]} 37. Rh4 {[%emt 0:00:48]} h5 {[%emt 0:02:49]} 38. Rf4 {[%emt 0:00:01]} Kd6 {[%emt 0:00:13]} 39. Rff3 {[%emt 0:00:12]} Rb1 {[%emt 0:00:35]} 40. Rfd3 {[%emt 0:02:06]} c5 {[%emt 0:02:12]} 41. Bb3 {[%emt 0:03:07]} Rb2 {[%emt 0:00:35]} 42. Kf3 {[%emt 0:00:56]} Kc6 {[%emt 0:01:02]} 43. g4 {[%emt 0:01:20]} hxg4+ {[%emt 0:00:26]} 44. hxg4 {[%emt 0:00:08]} g5 {[%emt 0:02:00]} 45. Ke3 {[%emt 0:05:52]} Ra8 {[%emt 0:01:39]} 46. Rd2 {[%emt 0:02:14]} Rh8 {[%emt 0:00:47]} 47. Ba4+ {[%emt 0:01:52]} Kd6 {[%emt 0:00:20]} 48. Rcc2 {[%emt 0:00:28]} Rb4 {[%emt 0:00:38]} 49. Bb3 {[%emt 0:00:28]} Rh3+ {[%emt 0:00:33]} 50. Ke2 {[%emt 0:00:21]} c4 {[%emt 0:00:45]} 0-1

[Event "1000GM NY Winter GM-B 2024"]
[Site "New York"]
[Date "2024.01.14"]
[Round "6.1"]
[White "Adewumi, Tanitoluwa"]
[Black "Graif, William"]
[Result "1-0"]
[ECO "B51"]
[WhiteElo "2280"]
[BlackElo "2302"]
[Annotator "RC"]
[PlyCount "67"]
[EventDate "2024.01.10"]
[EventType "tourn"]
[EventCountry "USA"]
[SourceTitle "playchess.com"]
[Source "ChessBase"]
[SourceQuality "1"]
[TimeControl "5400+30"]

1. e4 {[%emt 0:09:27]} c5 {[%emt 0:00:07]} 2. Nf3 {[%emt 0:00:23]} d6 {[%emt 0:01:05]} 3. Bb5+ {[%emt 0:00:07]} Nd7 {[%emt 0:00:37]} 4. c3 {[%emt 0:00:08]} Ngf6 {[%emt 0:00:16]} 5. Bd3 {[%emt 0:01:29]} g6 {[%emt 0:00:51]} 6. Bc2 {[%emt 0:00:05]} b5 {[%emt 0:01:29]} 7. d4 {[%emt 0:00:42]} Bg7 {[%emt 0:02:18]} 8. e5 {[%emt 0:12:12]} dxe5 {[%emt 0:00:31]} 9. dxe5 {[%emt 0:00:12]} Ng4 {[%emt 0:00:18]} 10. e6 {[%emt 0:00:28]} Nde5 {[%emt 0:16:05]} 11. exf7+ {[%emt 0:01:48]} Nxf7 {[%emt 0:01:40]} 12. Qe2 {[%emt 0:02:04]} O-O {[%emt 0:10:11]} 13. O-O {[%emt 0:01:24]} Qc7 {[%emt 0:33:50]} 14. h3 {[%emt 0:10:59]} Nge5 {[%emt 0:01:12]} 15. Be4 {[%emt 0:13:04]} Bb7 {[%emt 0:04:02]} 16. Nbd2 {[%emt 0:00:56]} Bxe4 {[%emt 0:06:37]} 17. Nxe4 {[%emt 0:00:21]} Nxf3+ {[%emt 0:04:30]} 18. Qxf3 {[%emt 0:00:12]} Ne5 {[%emt 0:01:47]} 19. Qe2 {[%emt 0:03:09]} c4 {[%emt 0:07:32]} 20. a4 {[%emt 0:01:14]} a6 {[%emt 0:01:02]} 21. axb5 {[%emt 0:00:23]} axb5 {[%emt 0:00:02]} 22. Rxa8 {[%emt 0:06:27]} Rxa8 {[%emt 0:00:01]} 23. Bf4 {[%emt 0:01:05]} Rf8 {[%emt 0:01:29]} 24. Ng5 {[%emt 0:10:33]} Rf5 {[%emt 0:01:33]} 25. Rd1 {[%emt 0:02:02]} Qc8 {[%emt 0:00:38]} 26. Qe4 {[%emt 0:01:59]} Nd3 {[%emt 0:01:10]} 27. Ra1 {[%emt 0:02:15]} Qd7 {[%emt 0:01:21]} 28. Be3 {[%emt 0:02:44]} Nxf2 {[%emt 0:01:42]} 29. Ra8+ {[%emt 0:05:11]} Bf8 {[%emt 0:00:02]} 30. Qe6+ {[%emt 0:02:50]} Qxe6 {[%emt 0:00:04]} 31. Nxe6 {[%emt 0:00:03]} Nd3 {[%emt 0:00:50]} 32. Bh6 {[%emt 0:02:35]} Kf7 {[%emt 0:00:41]} 33. Ng5+ {[%emt 0:04:35]} Rxg5 {[%emt 0:00:23]} 34. Rxf8+ {[%emt 0:00:14]} 1-0

[Event "1000GM NY Winter GM-B 2024"]
[Site "New York"]
[Date "2024.01.14"]
[Round "6.2"]
[White "Nagy, Gabor"]
[Black "Levine, Joseph"]
[Result "1/2-1/2"]
[ECO "D30"]
[WhiteElo "2450"]
[BlackElo "2376"]
[Annotator "RC"]
[PlyCount "42"]
[EventDate "2024.01.10"]
[EventType "tourn"]
[EventCountry "USA"]
[SourceTitle "playchess.com"]
[Source "ChessBase"]
[SourceQuality "1"]
[TimeControl "5400+30"]

1. d4 {[%emt 0:08:13]} Nf6 {[%emt 0:00:06]} 2. c4 {[%emt 0:00:26]} e6 {[%emt 0:00:05]} 3. Nf3 {[%emt 0:00:42]} d5 {[%emt 0:00:13]} 4. Nbd2 {[%emt 0:00:12]} c5 {[%emt 0:06:41]} 5. cxd5 {[%emt 0:00:18]} exd5 {[%emt 0:00:52]} 6. dxc5 {[%emt 0:00:46]} Bxc5 {[%emt 0:00:38]} 7. e3 {[%emt 0:00:09]} O-O {[%emt 0:01:01]} 8. Be2 {[%emt 0:01:49]} Nc6 {[%emt 0:02:38]} 9. Nb3 {[%emt 0:01:20]} Bd6 {[%emt 0:01:33]} 10. O-O {[%emt 0:01:29]} Ne4 {[%emt 0:08:48]} 11. Bd2 {[%emt 0:03:15]} Qf6 {[%emt 0:04:26]} 12. Bc3 {[%emt 0:01:43]} Nxc3 {[%emt 0:07:41]} 13. bxc3 {[%emt 0:00:08]} Qxc3 {[%emt 0:00:21]} 14. Qxd5 {[%emt 0:00:41]} Rd8 {[%emt 0:01:00]} 15. Qe4 {[%emt 0:03:11]} Qf6 {[%emt 0:01:17]} 16. Nbd4 {[%emt 0:01:52]} Nxd4 {[%emt 0:01:24]} 17. Nxd4 {[%emt 0:00:18]} Qe5 {[%emt 0:02:32]} 18. Qxe5 {[%emt 0:01:56]} Bxe5 {[%emt 0:00:02]} 19. Rfd1 {[%emt 0:00:49]} Bd7 {[%emt 0:03:18]} 20. Bf3 {[%emt 0:00:30]} Rab8 {[%emt 0:03:43]} 21. Rab1 {[%emt 0:00:31]} b6 {[%emt 0:05:26]} 1/2-1/2